bitfinex-derivatives/quotes_SOLF0:USTF0_20241105
["timestamp","ask_amount","ask_price","bid_price","bid_amount"]
[1730820710466,3.66336447,165.26,165.12,23.17395838]
[1730820710676,23.17395838,165.27,165.12,23.17395838]
[1730820710869,6.68981231,165.26,165.15,23.17395838]
[1730820711074,23.17395838,165.27,165.16,6.5617]
[1730820711269,23.17395838,165.27,165.17,1.3527]
[1730820711471,1.3765,165.28,165.17,1.3527]
[1730820711677,3.66280337,165.27,165.18,23.17395838]
[1730820711878,3.0256,165.28,165.18,23.17395838]
[1730820712081,24.43985838,165.33,165.21,23.17395838]
[1730820712280,3.66344746,165.32,165.22,5.28]
[1730820712478,28.45395838,165.38,165.24,23.17395838]
[1730820712686,3.66393255,165.37,165.26,23.17395838]
[1730820712881,3.0231,165.42,165.36,3.024]
[1730820713180,26.8384696,165.41,165.33,5.28]
[1730820713378,23.17395838,165.41,165.33,5.28]
[1730820713679,23.17395838,165.41,165.27,2.6906]
[1730820713680,23.17395838,165.36,165.28,5.28]
[1730820714182,23.17395838,165.36,165.27,1.3799]
[1730820714387,23.17395838,165.36,165.25,6.608]
[1730820714388,23.17395838,165.33,165.25,1.328]
[1730820714576,3.0253,165.3,165.25,4.3541]
[1730820714882,23.17395838,165.31,165.25,1.328]
[1730820715280,23.17395838,165.33,165.25,1.328]
[1730820715587,3.66659201,165.32,165.25,1.328]
[1730820715789,3.025,165.31,165.25,4.354]
[1730820715978,23.17395838,165.33,165.25,1.328]
[1730820716378,3.66495262,165.32,165.25,4.354]
[1730820716583,23.17395838,165.33,165.25,3.026]
[1730820716884,3.6645359,165.32,165.25,3.026]
[1730820717086,3.0249,165.32,165.25,3.0261]
[1730820717386,23.17395838,165.3,165.2,1.2709]
[1730820717884,3.0256,165.28,165.23,3.0265]
[1730820718184,23.17395838,165.3,165.2,1.2709]
[1730820718390,3.0259,165.27,165.21,3.0267]
[1730820718690,3.0259,165.27,165.2,1.2709]
[1730820718890,3.0261,165.26,165.21,3.0268]
[1730820719091,23.17395838,165.3,165.2,1.2709]
[1730820719284,3.6638431,165.29,165.2,1.2709]
[1730820719491,23.17395838,165.3,165.22,3.0267]
[1730820719690,23.17395838,165.3,165.2,1.2709]
[1730820719891,3.66331307,165.29,165.2,1.2709]
[1730820720083,3.026,165.26,165.22,3.0266]
[1730820720589,3.0258,165.28,165.22,3.0266]
[1730820720788,23.17395838,165.3,165.22,3.0266]
[1730820721190,3.66352737,165.29,165.2,1.2709]
[1730820721389,23.17395838,165.3,165.2,1.2709]
[1730820721778,23.17395838,165.33,165.2,1.2709]
[1730820721984,3.66332184,165.29,165.2,1.2709]
[1730820722185,23.17395838,165.27,165.15,1.3173]
[1730820722384,23.17395838,165.24,165.15,1.3173]
[1730820722584,23.17395838,165.24,165.13,1.3764]
[1730820723384,23.17395838,165.24,165.17,3.0276]
[1730820723385,3.0267,165.22,165.17,3.0276]
[1730820723587,23.17395838,165.24,165.13,1.3764]
[1730820723894,3.0267,165.22,165.17,3.0276]
[1730820724191,23.17395838,165.24,165.17,3.0276]
[1730820724379,23.17395838,165.24,165.13,1.3764]
[1730820724586,23.17395838,165.24,165.16,3.0277]
[1730820724785,23.17395838,165.24,165.13,1.3764]
[1730820725987,3.0268,165.22,165.17,3.0275]
[1730820727391,23.17395838,165.24,165.13,1.3764]
[1730820727792,3.0265,165.23,165.14,3.0281]
[1730820727994,23.17395838,165.24,165.11,23.17395838]
[1730820727995,23.17395838,165.24,165.11,24.55685838]
[1730820728497,28.45395838,165.27,165.11,24.55685838]
[1730820728891,2.552,165.28,165.24,3.0262]
[1730820729088,2.552,165.28,165.17,5.28]
[1730820729394,23.17395838,165.3,165.18,1.2703]
[1730820729598,2.7033,165.35,165.2,23.17395838]
[1730820729895,3.0258,165.28,165.24,3.0263]
[1730820730100,23.17395838,165.3,165.21,1.3829]
[1730820730594,23.17395838,165.27,165.18,2.57]
[1730820731109,23.17395838,165.27,165.18,5.5974]
[1730820731399,23.17395838,165.27,165.18,2.57]
[1730820731697,3.66325106,165.26,165.18,2.57]
[1730820731896,23.17395838,165.27,165.18,2.57]
[1730820732093,3.66112558,165.26,165.19,3.0272]
[1730820732298,23.17395838,165.27,165.19,3.0272]
[1730820732491,3.6607657,165.26,165.19,3.0272]
[1730820732692,3.0265,165.23,165.19,3.0272]
[1730820732994,23.17395838,165.24,165.15,3.0279]
[1730820733197,23.17395838,165.24,165.13,2.6752]
[1730820733198,3.027,165.21,165.13,2.6752]
[1730820733392,2.7504,165.26,165.13,2.6752]
[1730820733597,2.7504,165.26,165.15,23.17395838]
[1730820733797,3.0261,165.25,165.21,3.0267]
[1730820733994,23.17395838,165.3,165.18,5.32]
[1730820734298,23.17395838,165.27,165.18,5.32]
[1730820734488,3.66424718,165.26,165.18,5.32]
[1730820734687,23.17395838,165.3,165.18,5.32]
[1730820734893,3.66364997,165.29,165.18,28.49395838]
[1730820735094,3.0255,165.29,165.24,3.0263]
[1730820735295,31.13395838,165.33,165.18,28.49395838]
[1730820735497,3.66435301,165.32,165.18,28.49395838]
[1730820735694,23.17395838,165.3,165.18,28.49395838]
[1730820735892,23.17395838,165.3,165.18,5.32]
[1730820736093,3.0265,165.23,165.16,3.0276]
[1730820736293,23.17395838,165.27,165.13,7.9952]
[1730820736701,3.027,165.21,165.17,3.0276]
[1730820736898,23.17395838,165.24,165.13,7.9952]
[1730820737296,3.0271,165.2,165.16,3.0277]
[1730820737497,3.0271,165.2,165.13,2.6752]
[1730820737498,23.17395838,165.24,165.13,2.6752]
[1730820737797,23.17395838,165.24,165.12,1.3332]
[1730820737798,23.17395838,165.22,165.09,28.49395838]
[1730820738100,2.5536,165.23,165.06,35.00195309]
[1730820738101,23.17395838,165.19,165.07,4.075]
[1730820738302,3.0279,165.16,165.11,3.0286]
[1730820738598,23.17395838,165.19,165.07,9.395]
[1730820738802,3.0274,165.18,165.13,3.0282]
[1730820739099,5.32,165.21,165.13,3.0282]
[1730820739298,5.32,165.21,165.07,9.395]
[1730820739504,5.32,165.21,165.13,3.0283]
[1730820739803,5.32,165.21,165.07,9.395]
[1730820740202,23.17395838,165.19,165.07,9.395]
[1730820740395,23.17395838,165.16,164.93,23.17395838]
[1730820740599,2.5409,165.15,165.01,25.81325838]
[1730820741899,23.17395838,165.19,165.04,23.17395838]
[1730820742296,23.17395838,165.19,165.07,23.17395838]
[1730820742504,2.5409,165.2,165.08,6.6965]
[1730820742705,2.5409,165.2,165.1,23.17395838]
[1730820743203,23.17395838,165.28,165.12,23.17395838]
[1730820743401,2.6701,165.29,165.18,23.17395838]
[1730820743599,2.6701,165.29,165.19,1.3765]
[1730820743898,3.0264,165.24,165.18,8.3472]
[1730820744102,3.0264,165.24,165.18,5.32]
[1730820744609,23.17395838,165.28,165.18,5.32]
[1730820745003,3.0263,165.25,165.2,3.027]
[1730820745206,23.17395838,165.28,165.18,5.32]
[1730820745611,3.0265,165.23,165.18,8.3474]
[1730820745808,23.17395838,165.25,165.13,6.6965]
[1730820746303,3.0266,165.23,165.18,3.0272]
[1730820746510,23.17395838,165.25,165.13,6.6965]
[1730820746803,3.0268,165.22,165.13,6.6965]
[1730820747314,3.0269,165.21,165.13,6.6965]
[1730820747509,23.17395838,165.28,165.13,6.6965]
[1730820747711,23.17395838,165.28,165.2,3.0269]
[1730820748006,23.17395838,165.28,165.15,23.17395838]
[1730820748302,2.6701,165.29,165.18,23.17395838]
[1730820748509,23.17395838,165.34,165.2,23.17395838]
[1730820748805,54.43533003,165.38,165.23,23.17395838]
[1730820748806,2.6854,165.37,165.23,23.17395838]
[1730820749008,3.0247,165.33,165.23,23.17395838]
[1730820749206,3.0247,165.33,165.29,3.0252]
[1730820749410,1.3886,165.37,165.27,5.32]
[1730820749606,1.3964,165.41,165.28,31.15845838]
[1730820749909,24.57035838,165.41,165.29,5.32]
[1730820750207,23.17395838,165.38,165.29,5.32]
[1730820750403,23.17395838,165.38,165.3,3.0251]
[1730820750599,24.57035838,165.41,165.29,5.32]
[1730820750805,24.57035838,165.41,165.32,3.0247]
[1730820750999,24.57035838,165.41,165.29,5.32]
[1730820751508,24.57035838,165.41,165.32,3.0248]
[1730820751702,24.57035838,165.41,165.29,5.32]
[1730820751898,24.57035838,165.41,165.3,3.0251]
[1730820752101,24.57035838,165.41,165.29,5.32]
[1730820752808,4.4197,165.41,165.29,5.32]
[1730820753009,1.3964,165.41,165.33,3.0246]
[1730820753311,1.3964,165.41,165.3,1.3352]
[1730820753505,23.17395838,165.46,165.35,3.0242]
[1730820753705,23.17395838,165.46,165.36,5.04]
[1730820754006,2.6345,165.48,165.36,5.04]
[1730820754310,2.6345,165.48,165.37,25.90425838]
[1730820754708,5.6565,165.48,165.43,3.0227]
[1730820754905,2.6345,165.48,165.43,5.04]
[1730820756122,23.17395838,165.55,165.43,5.04]
[1730820756714,23.17395838,165.52,165.43,5.04]
[1730820757813,2.5417,165.56,165.43,5.04]
[1730820758011,2.5417,165.56,165.43,28.21395838]
[1730820758424,3.021,165.54,165.47,3.0219]
[1730820758610,2.5417,165.56,165.43,28.21395838]
[1730820758811,2.5417,165.56,165.43,23.17395838]
[1730820759007,3.0217,165.49,165.44,5.04]
[1730820759211,23.17395838,165.5,165.41,1.3904]
[1730820759623,3.0223,165.47,165.41,3.0232]
[1730820759808,23.17395838,165.5,165.39,28.21395838]
[1730820760314,23.17395838,165.53,165.39,28.21395838]
[1730820760913,3.0222,165.47,165.41,3.023]
[1730820761112,23.17395838,165.5,165.41,3.023]
[1730820761313,23.17395838,165.5,165.39,5.04]
[1730820761514,3.0222,165.47,165.42,3.0229]
[1730820762716,2.5417,165.56,165.42,23.17395838]
[1730820763019,23.17395838,165.54,165.42,23.17395838]
[1730820763224,23.17395838,165.54,165.39,28.21395838]
[1730820763522,23.17395838,165.54,165.4,5.04]
[1730820763916,23.17395838,165.51,165.4,5.04]
[1730820764514,23.17395838,165.51,165.41,3.023]
[1730820764717,23.17395838,165.51,165.4,5.04]
[1730820765514,5.04,165.55,165.4,5.04]
[1730820765515,23.17395838,165.54,165.4,5.04]
[1730820765727,3.0216,165.5,165.45,3.0223]
[1730820765918,23.17395838,165.54,165.4,5.04]
[1730820766117,3.0216,165.5,165.44,3.0225]
[1730820766321,23.17395838,165.54,165.41,23.17395838]
[1730820766815,3.0215,165.51,165.44,3.0225]
[1730820767022,2.5417,165.56,165.45,23.17395838]
[1730820767322,2.5417,165.56,165.46,6.3421]
[1730820767518,2.5417,165.56,165.46,8.8963]
[1730820767928,1.2725,165.56,165.46,8.8963]
[1730820768224,4.293,165.56,165.51,3.0213]
[1730820768615,1.2725,165.56,165.52,3.0212]
[1730820770020,4.2931,165.56,165.46,8.8963]
[1730820770321,1.2725,165.56,165.46,8.8963]
[1730820770523,3.021,165.54,165.5,3.0215]
[1730820770718,1.2725,165.56,165.46,8.8963]
[1730820770919,24.55315838,165.62,165.48,23.17395838]
[1730820771125,0.301,165.68,165.58,3.0201]
[1730820771319,26.19835838,165.68,165.55,5.02]
[1730820771529,23.17395838,165.66,165.55,5.02]
[1730820771921,3.0198,165.6,165.55,8.0406]
[1730820772126,23.17395838,165.63,165.55,5.02]
[1730820772819,26.19835838,165.68,165.55,28.19395838]
[1730820773015,3.019,165.64,165.59,3.0198]
[1730820773616,25.89735838,165.68,165.56,1.3255]
[1730820774022,23.17395838,165.66,165.55,5.02]
[1730820774323,3.02,165.59,165.55,5.02]
[1730820774526,23.17395838,165.66,165.52,23.17395838]
[1730820774726,23.17395838,165.66,165.53,5.02]
[1730820775031,23.17395838,165.63,165.53,5.02]
[1730820775431,3.0202,165.58,165.52,3.0211]
[1730820775635,23.17395838,165.63,165.51,5.02]
[1730820775931,3.0191,165.64,165.55,23.17395838]
[1730820776125,2.7234,165.68,165.55,23.17395838]
[1730820777131,3.019,165.65,165.58,3.0199]
[1730820777329,2.7234,165.68,165.57,5.02]
[1730820778635,3.0193,165.63,165.57,8.0401]
[1730820779331,3.0193,165.63,165.58,3.02]
[1730820779629,23.17395838,165.66,165.57,5.02]
[1730820780031,3.02,165.59,165.57,5.02]
[1730820780422,23.17395838,165.66,165.51,23.17395838]
[1730820780423,23.17395838,165.66,165.53,8.0408]
[1730820780621,23.17395838,165.66,165.53,5.02]
[1730820781031,23.17395838,165.66,165.54,3.0207]
[1730820781229,2.7234,165.68,165.53,5.02]
[1730820781432,23.17395838,165.66,165.53,5.02]
[1730820781623,3.0198,165.6,165.53,5.02]
[1730820782333,3.0195,165.62,165.56,3.0204]
[1730820782529,23.17395838,165.66,165.56,3.0204]
[1730820783033,23.17395838,165.59,165.37,5.02]
[1730820783227,23.17395838,165.52,165.42,2.586]
[1730820783430,23.17395838,165.49,165.42,2.586]
[1730820783631,3.0226,165.45,165.42,2.586]
[1730820783831,23.17395838,165.49,165.42,1.3096]
[1730820784238,3.0221,165.47,165.42,1.3096]
[1730820784435,23.17395838,165.49,165.42,1.3096]
[1730820785325,3.0221,165.47,165.42,1.3096]
[1730820785727,23.17395838,165.49,165.42,1.3096]
[1730820785931,23.17395838,165.49,165.38,2.6273]
[1730820786133,23.17395838,165.46,165.32,23.17395838]
[1730820786337,23.17395838,165.46,165.34,3.0244]
[1730820786531,28.11395838,165.52,165.34,3.0244]
[1730820786532,23.17395838,165.43,165.34,3.0244]
[1730820786732,23.17395838,165.43,165.33,4.94]
[1730820786932,23.17395838,165.43,165.34,3.0244]
[1730820786933,3.0234,165.4,165.34,3.0244]
[1730820787637,3.0234,165.4,165.35,3.0242]
[1730820787838,23.17395838,165.46,165.33,4.94]
[1730820788035,3.0228,165.43,165.35,23.17395838]
[1730820788234,23.17395838,165.49,165.35,23.17395838]
[1730820788643,28.11395838,165.52,165.38,23.17395838]
[1730820788837,28.11395838,165.52,165.41,3.0232]
[1730820789040,23.17395838,165.52,165.41,3.0232]
[1730820789238,3.0223,165.47,165.41,3.0232]
[1730820789443,23.17395838,165.52,165.4,3.0234]
[1730820790741,3.0223,165.46,165.41,3.0232]
[1730820790952,23.17395838,165.52,165.39,9.0216]
[1730820791248,23.17395838,165.49,165.39,4.94]
[1730820791436,23.17395838,165.46,165.35,4.94]
[1730820792041,3.0228,165.43,165.38,3.0237]
[1730820792546,23.17395838,165.49,165.36,4.94]
[1730820792846,1.0,165.51,165.37,32.14775838]
[1730820793239,23.17395838,165.52,165.37,32.14775838]
[1730820794046,7.5699,165.55,165.37,8.9738]
[1730820794047,23.17395838,165.49,165.37,8.9738]
[1730820794249,28.11395838,165.49,165.37,8.9738]
[1730820794640,23.17395838,165.46,165.37,8.9738]
[1730820794840,23.17395838,165.46,165.32,23.17395838]
[1730820795046,0.3001,165.48,165.32,23.17395838]
[1730820795047,23.17395838,165.43,165.32,4.94]
[1730820795551,3.0241,165.37,165.32,7.9648]
[1730820796162,23.17395838,165.43,165.32,7.9648]
[1730820796360,23.17395838,165.4,165.28,4.0465]
[1730820796561,23.17395838,165.35,165.21,23.17395838]
[1730820796765,3.0255,165.29,165.23,3.0265]
[1730820796958,23.17395838,165.35,165.23,3.0265]
[1730820797263,23.17395838,165.35,165.21,28.11395838]
[1730820797465,23.17395838,165.35,165.25,3.0261]
[1730820797658,23.17395838,165.35,165.21,28.11395838]
[1730820797863,3.0247,165.33,165.27,3.0257]
[1730820798060,4.94,165.36,165.24,23.17395838]
[1730820798357,2.6736,165.35,165.24,23.17395838]
[1730820798562,3.0252,165.31,165.25,3.026]
[1730820798761,2.6736,165.35,165.24,23.17395838]
[1730820798965,25.84755838,165.35,165.21,23.17395838]
[1730820799160,25.84755838,165.35,165.22,4.96]
[1730820799354,3.026,165.26,165.2,3.027]
[1730820799557,23.17395838,165.32,165.2,4.96]
[1730820799758,3.0259,165.27,165.21,3.0268]
[1730820799956,4.96,165.29,165.14,23.17395838]
[1730820800164,4.96,165.28,165.14,23.17395838]
[1730820800359,3.0261,165.25,165.19,3.0272]
[1730820800667,4.96,165.28,165.14,28.13395838]
[1730820801162,28.13395838,165.3,165.18,23.17395838]
[1730820801665,4.96,165.3,165.18,23.17395838]
[1730820801865,4.96,165.31,165.22,3.0266]
[1730820802263,28.13395838,165.32,165.18,23.17395838]
[1730820802564,3.0259,165.27,165.21,3.0268]
[1730820803467,3.0259,165.27,165.18,23.17395838]
[1730820803771,3.0258,165.27,165.18,23.17395838]
[1730820804658,28.13395838,165.32,165.18,23.17395838]
[1730820805067,28.13395838,165.32,165.22,3.0266]
[1730820805668,3.0252,165.31,165.26,3.0259]
[1730820805969,3.0252,165.31,165.24,23.17395838]
[1730820806164,3.0246,165.34,165.24,23.17395838]
[1730820806363,2.6736,165.35,165.24,23.17395838]
[1730820806864,25.84755838,165.35,165.21,24.47085838]
[1730820807057,23.17395838,165.32,165.21,1.2969]
[1730820807268,2.6736,165.35,165.17,3.0275]
[1730820807269,3.0266,165.23,165.17,3.0275]
[1730820807778,3.0261,165.26,165.16,2.6705]
[1730820807964,28.13395838,165.29,165.16,2.6705]
[1730820808572,23.17395838,165.27,165.16,2.6705]
[1730820808764,2.6819,165.26,165.16,2.6705]
[1730820809071,3.027,165.21,165.13,23.17395838]
[1730820809276,3.027,165.21,165.13,24.56085838]
[1730820809666,3.027,165.21,165.16,3.0278]
[1730820810064,23.17395838,165.24,165.13,1.3869]
[1730820810465,4.96,165.23,165.12,4.4143]
[1730820810871,4.96,165.23,165.12,1.3859]
[1730820811374,23.17395838,165.19,165.05,29.51985838]
[1730820811668,3.0285,165.13,165.05,29.51985838]
[1730820812259,3.0285,165.12,165.07,3.0294]
[1730820812459,2.7425,165.18,165.07,3.0294]
[1730820812969,3.0284,165.13,165.07,3.0294]
[1730820813175,3.0284,165.13,165.08,3.0292]
[1730820814869,3.0281,165.15,165.05,29.51985838]
[1730820815067,2.7425,165.18,165.05,29.51985838]
[1730820815479,3.0284,165.13,165.05,29.51985838]
[1730820815972,3.0286,165.12,165.07,3.0293]
[1730820816178,4.96,165.17,165.05,24.55985838]
[1730820816364,4.96,165.17,165.05,1.3859]
[1730820816769,3.0286,165.12,165.06,3.0295]
[1730820818067,3.0282,165.14,165.09,3.0289]
[1730820818264,23.17395838,165.16,165.01,23.17395838]
[1730820818467,23.17395838,165.13,165.01,25.75075838]
[1730820818869,23.17395838,165.13,165.01,2.5768]
[1730820819074,3.0292,165.08,165.01,2.5768]
[1730820819273,23.17395838,165.11,165.01,2.5768]
[1730820819671,4.96,165.12,165.04,3.03]
[1730820819979,4.96,165.12,165.01,2.5768]
[1730820820370,23.17395838,165.16,165.01,2.5768]
[1730820820577,4.96,165.14,165.01,2.5768]
[1730820820778,3.0288,165.11,165.05,3.0296]
[1730820821173,4.96,165.14,165.05,3.0296]
[1730820821380,3.029,165.1,165.05,3.0296]
[1730820822283,2.7425,165.18,165.06,23.17395838]
[1730820822869,3.0287,165.11,165.03,28.13395838]
[1730820823270,23.17395838,165.16,165.03,28.13395838]
[1730820823477,23.17395838,165.16,165.04,3.0299]
[1730820824083,3.0291,165.09,165.04,3.0299]
[1730820824285,23.17395838,165.16,165.03,4.96]
[1730820824483,23.17395838,165.16,165.01,2.5768]
[1730820824986,23.17395838,165.16,165.04,3.0298]
[1730820825484,23.17395838,165.16,165.05,3.0296]
[1730820826276,23.17395838,165.16,165.01,2.5768]
[1730820826477,23.17395838,165.16,165.04,3.0299]
[1730820826682,3.0292,165.09,165.04,3.0299]
[1730820826880,23.17395838,165.16,165.04,3.0299]
[1730820827076,23.17395838,165.16,165.02,3.0303]
[1730820827286,23.17395838,165.12,165.01,2.5768]
[1730820827776,23.17395838,165.12,165.01,5.6073]
[1730820828183,3.0298,165.06,165.01,5.6073]
[1730820828777,23.17395838,165.12,165.01,2.5768]
[1730820828980,4.96,165.13,164.98,1.3476]
[1730820828981,23.17395838,165.1,164.98,1.3476]
[1730820829878,28.13395838,165.1,165.0,3.0306]
[1730820830089,28.13395838,165.1,164.98,1.3476]
[1730820830388,3.0315,164.96,164.91,3.0322]
[1730820830774,23.17395838,165.02,164.87,1.3206]
[1730820831283,4.96,165.03,164.87,1.3206]
[1730820831284,23.17395838,164.99,164.87,1.3206]
[1730820831582,2.5716,165.01,164.87,1.3206]
[1730820831789,23.17395838,164.99,164.87,1.3206]
[1730820832089,2.5716,165.01,164.87,1.3206]
[1730820832090,3.0324,164.92,164.87,7.9931]
[1730820832381,28.13395838,164.97,164.8,23.17395838]
[1730820832585,28.13395838,164.97,164.81,4.96]
[1730820832790,28.13395838,164.97,164.79,3.04930726]
[1730820832985,23.17395838,164.94,164.79,28.13395838]
[1730820833179,4.96,164.97,164.82,23.17395838]
[1730820833180,1.0,164.96,164.82,23.17395838]
[1730820833386,5.96,164.96,164.82,23.17395838]
[1730820833589,4.96,164.96,164.82,23.17395838]
[1730820833793,3.0319,164.94,164.88,3.0329]
[1730820834084,23.17395838,164.94,164.83,4.96]
[1730820834483,3.032,164.93,164.83,4.96]
[1730820835583,26.20575838,164.94,164.87,3.0331]
[1730820835785,23.17395838,164.97,164.83,4.96]
[1730820836291,23.17395838,164.97,164.9,3.0324]
[1730820836484,2.5716,165.01,164.85,23.17395838]
[1730820836485,23.17395838,165.0,164.85,23.17395838]
[1730820837192,3.0311,164.99,164.92,3.0321]
[1730820837587,23.17395838,165.0,164.9,4.96]
[1730820838892,23.17395838,165.02,164.91,3.8068]
[1730820839086,23.17395838,165.02,164.95,3.0315]
[1730820839288,23.17395838,165.02,164.91,3.8068]
[1730820842486,23.17395838,164.99,164.91,3.8068]
[1730820842697,23.17395838,165.02,164.91,3.8068]
[1730820843298,23.17395838,165.02,164.94,3.0318]
[1730820843500,23.17395838,165.02,164.91,3.8068]
[1730820843698,23.17395838,164.99,164.92,4.96]
[1730820843893,3.0314,164.97,164.92,4.96]
[1730820844089,23.17395838,164.99,164.92,4.96]
[1730820845093,23.17395838,164.99,164.91,3.8068]
[1730820845491,3.0312,164.98,164.93,3.032]
[1730820845692,23.17395838,164.94,164.81,35.05829726]
[1730820845990,23.17395838,164.91,164.82,3.8774]
[1730820847297,23.17395838,164.91,164.82,3.0339]
[1730820847801,23.17395838,164.91,164.79,4.96]
[1730820848400,23.17395838,164.91,164.86,3.0331]
[1730820848700,23.17395838,164.91,164.79,4.96]
[1730820848901,23.17395838,164.91,164.79,28.13395838]
[1730820849100,26.20635838,164.91,164.79,28.13395838]
[1730820849596,1.385,164.93,164.79,28.13395838]
[1730820849806,23.17395838,164.94,164.81,23.17395838]
[1730820850205,23.48205838,164.96,164.89,3.0326]
[1730820850500,23.17395838,164.93,164.79,28.13395838]
[1730820850895,23.48205838,164.96,164.79,28.13395838]
[1730820851094,23.48205838,164.96,164.89,3.0326]
[1730820851295,23.48205838,164.96,164.82,23.17395838]
[1730820852202,3.0321,164.93,164.82,23.17395838]
[1730820852503,23.48205838,164.96,164.82,23.17395838]
[1730820852900,23.48205838,164.96,164.79,28.13395838]
[1730820853199,23.48205838,164.96,164.8,4.96]
[1730820853402,23.48205838,164.96,164.81,4.96]
[1730820853797,26.20555838,164.96,164.91,3.0322]
[1730820853999,23.17395838,164.99,164.87,4.96]
[1730820854205,23.17395838,164.99,164.88,8.9891]
[1730820854395,1.77453,165.0,164.96,3.0314]
[1730820854599,1.77453,165.0,164.88,11.97077451]
[1730820855300,1.77453,165.0,164.88,8.9891]
[1730820855508,3.0313,164.97,164.92,3.032]
[1730820855806,23.17395838,164.98,164.88,8.9891]
[1730820856008,1.77453,165.0,164.88,4.0291]
[1730820856305,1.77453,165.0,164.88,8.9891]
[1730820856610,3.031,164.99,164.94,3.0318]
[1730820856906,3.031,164.99,164.88,8.9891]
[1730820857103,3.031,164.99,164.94,3.0317]
[1730820857305,3.0311,164.98,164.88,8.9891]
[1730820857499,1.77453,165.0,164.88,8.9891]
[1730820857700,3.0314,164.97,164.92,3.032]
[1730820857899,23.17395838,164.96,164.73,78.69289442]
[1730820858095,23.17395838,164.93,164.81,2.6566]
[1730820858301,23.17395838,164.83,164.6,2.3720467]
[1730820858504,23.17395838,164.83,164.7,1.2749]
[1730820858709,23.17395838,164.83,164.71,2.7014]
[1730820859207,3.0344,164.8,164.72,3.0357]
[1730820859403,23.17395838,164.8,164.72,3.0357]
[1730820859706,3.0343,164.81,164.74,3.0355]
[1730820859910,28.13395838,164.83,164.71,2.7014]
[1730820860207,23.17395838,164.83,164.76,3.0351]
[1730820860400,23.17395838,164.83,164.71,2.7014]
[1730820860597,28.13395838,164.85,164.71,2.7014]
[1730820860800,3.0339,164.83,164.74,3.0353]
[1730820861002,3.0339,164.83,164.71,2.7014]
[1730820861203,23.17395838,164.85,164.71,25.87535838]
[1730820861399,26.20745838,164.85,164.78,3.0347]
[1730820861905,3.0337,164.84,164.74,4.96]
[1730820862709,23.17395838,164.85,164.74,4.96]
[1730820863307,23.17395838,164.85,164.71,25.87535838]
[1730820863507,23.17395838,164.85,164.72,4.96]
[1730820863907,23.17395838,164.85,164.71,25.87535838]
[1730820864109,23.17395838,164.85,164.72,4.96]
[1730820864308,3.0338,164.83,164.76,3.035]
[1730820864512,3.0338,164.83,164.72,4.96]
[1730820864708,23.17395838,164.85,164.72,4.96]
[1730820864908,26.20745838,164.85,164.72,4.96]
[1730820865413,23.17395838,164.85,164.72,4.96]
[1730820865606,3.0341,164.82,164.72,4.96]
[1730820865807,23.17395838,164.85,164.72,4.96]
[1730820866015,3.0338,164.83,164.76,3.0351]
[1730820866509,3.0338,164.83,164.77,3.0349]
[1730820867418,23.17395838,164.85,164.72,4.96]
[1730820868113,3.0331,164.87,164.72,4.96]
[1730820868419,3.0333,164.86,164.72,4.96]
[1730820868811,23.17395838,164.88,164.72,4.96]
[1730820869014,26.20685838,164.88,164.81,3.0341]
[1730820869210,23.17395838,164.88,164.78,4.96]
[1730820869513,3.0338,164.84,164.78,3.0347]
[1730820869711,23.17395838,164.85,164.74,4.96]
[1730820870315,23.17395838,164.85,164.74,7.9954]
[1730820870316,3.0344,164.81,164.74,7.9954]
[1730820870514,23.17395838,164.85,164.74,4.96]
[1730820871916,3.0339,164.83,164.77,3.0349]
[1730820872316,3.0339,164.83,164.74,4.96]
[1730820872317,23.17395838,164.85,164.74,4.96]
[1730820872516,3.0338,164.83,164.77,3.0349]
[1730820873019,23.17395838,164.85,164.77,3.0349]
[1730820873316,23.17395838,164.82,164.73,3.0356]
[1730820873815,3.0347,164.79,164.71,2.686]